Cogmind - Beta 13 @@@ ROGUE MODE // 2024.04.03 @ 16:55:47 Player: DeluxeH30 Result: Destroyed by D-53 Grenadier with Mini Grenade Launcher Performance ------------- Evolutions (0) 0 Regions Visited (2) 400 Robots Destroyed (20) 100 Value Destroyed (368) 368 Prototype IDs (2) 40 Alien Tech Used (0) 0 Bonus (0) 0 TOTAL SCORE: 908 Bonus ------- None Cogmind --------- Core Integrity 0/250 Matter 212/300 Energy 125/125 System Corruption 0% Temperature Cool (0) Movement Core (400) Ox7 Location -10/Mines Parts ------- > --- POWER (1) -------- Light Ion Engine > --- PROPULSION (2) --- (None) > --- UTILITY (2) ------ Large Storage Unit Signal Interpreter > --- WEAPON (2) ------- (None) > --- INVENTORY (15) --- Light Ion Engine Light Ion Engine Improved Treads Improved Treads Flight Unit High-capacity Battery (250) Signal Interpreter Targeting Computer Core Shielding Core Shielding Weapon Shielding Improved Light Cannon Improved Light Cannon Hammer Peak State ------------ > --- POWER ------------ Light Ion Engine > --- PROPULSION ------- Improved Treads Improved Treads > --- UTILITY ---------- Small Storage Unit Signal Interpreter > --- WEAPON ----------- Improved Light Cannon Improved Light Cannon > --- INVENTORY -------- Ion Engine Light Ion Engine Improved Treads Hover Unit Sensor Array Weapon Shielding Improved Light Cannon Improved Light Cannon [Rating: 12] Favorites ----------- Power Light Ion Engine Engine Light Ion Engine Propulsion Improved Treads Treads Improved Treads Leg Aluminum Leg Utility Signal Interpreter Device Improved Terrain Scanner Storage Small Storage Unit Processor Signal Interpreter Weapon Improved Light Cannon Energy Gun Medium Laser Ballistic Gun Assault Rifle Ballistic Cannon Improved Light Cannon Launcher Grenade Launcher Build | -11 -10 -10 ------- Run | Yrd Mat Min Slots Evolved . | . . . Power . | . . . Propulsion . | . . . Utility . | . . . Weapon . | . . . Parts Attached 20 | 7 11 2 Power 4 | 1 2 1 Engine 4 | 1 2 1 Core . | . . . Reactor . | . . . Propulsion 5 | 2 3 . Treads 2 | . 2 . Leg 3 | 2 1 . Wheel . | . . . Hover . | . . . Flight . | . . . Utility 4 | 2 2 . Device 1 | 1 . . Storage 2 | 1 1 . Processor 1 | . 1 . Hackware . | . . . Protection . | . . . Artifact . | . . . Weapon 7 | 2 4 1 Energy Gun 2 | . 2 . Energy Cannon . | . . . Ballistic Gun 2 | 2 . . Ballistic Cannon 2 | . 2 . Launcher 1 | . . 1 Special Weapon . | . . . Impact Weapon . | . . . Slashing Weapon . | . . . Piercing Weapon . | . . . Special Melee Weapon . | . . . Unidentified Prototypes . | . . . Parts Lost 7 | . 3 4 Power 2 | . 2 . Propulsion 2 | . . 2 Utility . | . . . Weapon 3 | . 1 2 Highest Loss Streak 4 | . 1 4 To Critical Strikes . | . . . Average Slot Usage (%) 97 | . 97 99 Engine 11 | . 11 14 Treads 20 | . 18 27 Leg 7 | . 9 . Device 2 | . 3 . Storage 14 | . 14 14 Processor 11 | . 10 14 Energy Gun 1 | . 2 . Ballistic Gun 5 | . 6 . Ballistic Cannon 18 | . 19 14 Launcher 2 | . . 14 Naked Turns . | . . . Heaviest Build 31 | 13 31 30 Greatest Support 46 | 20 46 46 Greatest Overweight (x) 1 | 1 1 . Average Overweight (x) . | . . . Largest Inventory Capacity 15 | 8 15 15 Average Capacity 10 | 7 10 15 Most Carried 14 | 3 11 14 Average Carried 7 | 1 6 12 Final Capacity 15 | 8 15 15 Final Carried 14 | 2 11 14 Class Distribution -------------------- 100% | Mutant Dominant Class ---------------- Mutant | -10/Materials Mutant | -10/Mines Resources | -11 -10 -10 ----------- Run | Yrd Mat Min Matter Collected 786 | 214 448 124 Remotely . | . . . Salvage Created 475 | 19 423 33 Parts 37 | 2 35 . Haulers Intercepted 1 | . 1 . Recyclers Shooed 5 | . 5 . Parts Field Recycled . | . . . Retrieved Matter . | . . . Parts Self-Destructed . | . . . Prevented . | . . . Kills | -11 -10 -10 ------- Run | Yrd Mat Min Combat Hostiles Destroyed 13 | . 6 7 Guns 2 | . 2 . Cannons 6 | . 4 2 AOE 5 | . . 5 Classes Destroyed 10 | 1 7 2 Worker 3 | . 3 . Builder 3 | . 3 . Tunneler 2 | 1 1 . Hauler 1 | . 1 . Recycler 2 | . 2 . Mechanic 1 | . 1 . Watcher 1 | . 1 . Grunt 6 | . 6 . Demolisher 1 | . . 1 Assembled 6 | . . 6 Best Kill Streak 4 | 1 4 4 Combat Bots Only 4 | . 2 4 Max Kills in Single Turn 2 | 1 1 2 Gunslinging . | . . . Exploded 2 | . . 2 Melee . | . . . Uniques/NPCs Destroyed . | . . . Combat | -11 -10 -10 -------- Run | Yrd Mat Min Hostile Shots Fired 97 | . 82 15 Missed 22 | . 22 . Damage Taken 1310 | . 792 518 Core 263 | . 142 121 Absorbed by Shields . | . . . Core Remaining (%) 100 | 100 . . Volleys Fired 89 | 5 64 20 Largest 2 | 2 2 2 Hottest 100 | 40 100 69 Shots Fired 160 | 10 128 22 Gun 84 | 10 74 . Cannon 60 | . 54 6 Launcher 16 | . . 16 Special . | . . . Kinetic 130 | 10 114 6 Thermal 14 | . 14 . Explosive 16 | . . 16 Electromagnetic . | . . . Robot Hit Streak 8 | 1 8 3 Robot Miss Streak 6 | 5 6 2 Penetration Max . | . . . Secondary Targets 1 | . 1 . Max Gunslinging Chain 1 | . 1 . Shots Hit Robots 86 | 2 78 6 Core Hits 49 | 1 27 21 Critical Kills . | . . . Critical Parts Destroyed 1 | . 1 . Critical Strikes 3 | . 3 . Burn 2 | . 2 . Destroy 1 | . 1 . Melee Attacks . | . . . Impact . | . . . Slashing . | . . . Piercing . | . . . Sneak Attacks . | . . . Combat Hostiles . | . . . Follow-up Attacks . | . . . Damage Inflicted 1808 | 25 1324 459 Guns 566 | 25 541 . Cannons 842 | . 783 59 Explosions 400 | . . 400 Melee . | . . . Ramming . | . . . Kinetic 1310 | 25 1226 59 Thermal 98 | . 98 . Explosive 400 | . . 400 Electromagnetic . | . . . Impact . | . . . Slashing . | . . . Piercing . | . . . Highest Corruption . | . . . Average Corruption . | . . . Corruption Purged . | . . . Corruption Blocked . | . . . Overload Shots . | . . . Overflow Damage 31 | . 20 11 Projectiles 20 | . 20 . Explosions 11 | . . 11 Melee . | . . . Knockbacks 13 | . 12 1 Impact . | . . . Kinetic 12 | . 11 1 Secondary 1 | . 1 . Self-Inflicted Damage 109 | . . 109 Shots 3 | . . 3 Rammed . | . . . Targets Rammed . | . . . Kicked . | . . . Crushed . | . . . Highest Temperature 147 | . 147 16 Average Temperature 26 | . 27 9 Received Heat Transfer 532 | . 492 40 Siege Activations . | . . . Robots Corrupted . | . . . Combat Hostiles . | . . . Parts Fried . | . . . Impact Corruptions . | . . . Robots Melted . | . . . Combat Hostiles . | . . . Parts Melted . | . . . Heat Transferred 444 | . 444 . Parts Sabotaged . | . . . Parts Stolen . | . . . Parts Stripped . | . . . Power Chain Reactions . | . . . Alert | -11 -10 -10 ------- Run | Yrd Mat Min Peak Influence 158 | 5 158 88 Initial 8 | . 3 8 Average 47 | . 53 36 Maximum Alert Level . | . . . Low Security (%) 100 | 100 100 100 Level 1 . | . . . Level 2 . | . . . Level 3 . | . . . Level 4 . | . . . Level 5 . | . . . High Security . | . . . Max Security . | . . . Squads Dispatched 2 | . 2 . Investigation 1 | . 1 . Extermination . | . . . Reinforcement 1 | . 1 . Assault . | . . . Garrison . | . . . Intercept . | . . . Searches Triggered . | . . . Construction Impeded . | . . . Haulers Reinforced . | . . . Active Scanning Responses . | . . . Cargo Convoy Interrupts . | . . . Stealth | -11 -10 -10 --------- Run | Yrd Mat Min Distress Signals 2 | . 1 1 Communications Jammed . | . . . Distress Signals . | . . . Times Spotted 28 | . 14 14 Peak Tracking Total 7 | . 3 7 Tactical Retreats 4 | . 1 3 Traps | -11 -10 -10 ------- Run | Yrd Mat Min Traps Triggered 1 | . 1 . Indirectly . | . . . Trap Hack Attempts . | . . . Triggered . | . . . Disarmed . | . . . Reprogrammed . | . . . Reused . | . . . Traps Extracted . | . . . Installed . | . . . Triggered . | . . . Machines | -11 -10 -10 ---------- Run | Yrd Mat Min Machines Disabled 1 | . 1 . Max in Single Turn 1 | . 1 . Machines Repaired . | . . . Machines Dismantled . | . . . Machines Sabotaged . | . . . Overloaded Fab Kills . | . . . Hacking | -11 -10 -10 --------- Run | Yrd Mat Min Machines Accessed 4 | . 4 . Terminals 2 | . 2 . Fabricators . | . . . Repair Stations 1 | . 1 . Recycling Units 1 | . 1 . Scanalyzers . | . . . Garrison Access . | . . . Total Hacks 10 | . 10 . Successful 6 | . 6 . Failed 4 | . 4 . Catastrophic . | . . . Database Lockouts . | . . . Manual 1 | . 1 . Terminals 5 | . 5 . Fabricators . | . . . Repair Stations 2 | . 2 . Recycling Units 3 | . 3 . Scanalyzers . | . . . Garrison Access . | . . . Terminal Hacks 3 | . 3 . Record 1 | . 1 . Prototype ID Bank 1 | . 1 . Hauler Manifests 1 | . 1 . Fabricator Hacks . | . . . Repair Station Hacks . | . . . Recycling Unit Hacks 3 | . 3 . Report Inventory 2 | . 2 . Retrieve Matter 1 | . 1 . Scanalyzer . | . . . Garrison Access Hacks . | . . . Unauthorized Hacks . | . . . Terminals . | . . . Fabricators . | . . . Repair Stations . | . . . Recycling Units . | . . . Scanalyzers . | . . . Garrison Access . | . . . Data Cores Recovered . | . . . Used . | . . . Hacking Detections 3 | . 3 . Full Trace Events . | . . . Feedback Events . | . . . Feedback Blocked . | . . . Robot Schematics Acquired . | . . . Robots Built . | . . . Authchips . | . . . Time . | . . . Total Robot Build Rating . | . . . Part Schematics Acquired . | . . . Parts Built . | . . . Authchips . | . . . Time . | . . . Total Part Build Rating . | . . . Parts Repaired . | . . . Time . | . . . Parts Recycled . | . . . Recycled Matter . | . . . Retrieved Matter 101 | . 101 . Retrieved Components . | . . . Parts Scanalyzed . | . . . Part Schematics Acquired . | . . . Parts Damaged . | . . . Bothacking | -11 -10 -10 ------------ Run | Yrd Mat Min Used RIF Installer . | . . . Robots Hacked . | . . . Non-combat . | . . . Combat . | . . . Robot Hacks Applied . | . . . Relay Couplers Released . | . . . Fabnet Peak Effective % . | . . . Robots Rewired . | . . . Allies Hacked . | . . . Hacks Repelled . | . . . Allies | -11 -10 -10 -------- Run | Yrd Mat Min Total Allies . | . . . Largest Group . | . . . Highest-Rated Group . | . . . Highest-Rated Ally . | . . . Total Orders . | . . . Ally Attacks . | . . . Total Damage . | . . . Kills . | . . . Allies Corrupted . | . . . Allies Melted . | . . . Intel | -11 -10 -10 ------- Run | Yrd Mat Min Robot Analysis Total . | . . . Derelict Logs Recovered 1 | . . 1 Drone Launches . | . . . Drone Recoveries . | . . . Exploration | -11 -10 -10 ------------- Run | Yrd Mat Min Turns Passed 1177 | 87 905 185 Spaces Moved 563 | 52 433 78 Core 9 | 9 . . Treads 381 | . 303 78 Legs 173 | 43 130 . Wheels . | . . . Hover . | . . . Flight . | . . . Fastest Speed 50 | 50 120 160 Average Speed 146 | 109 148 160 Slowest Speed 190 | 120 190 160 Overloaded Moves . | . . . Propulsion Burnouts . | . . . Robots Hopped . | . . . Cave-ins Triggered . | . . . Exploration Rate (%) 25 | 4 52 21 Regions Visited 2 Branch Regions 1 Pre-discovered Areas . | . . . Known Exits Taken 1 | . 1 . Unknown Exits Taken 1 | 1 . . Scrap Searched 1 | . . 1 Spaces Dug . | . . . Terrain Destroyed 88 | . 1 87 Melee . | . . . Projectile 2 | . 1 1 AOE 86 | . . 86 Terrain Rammed . | . . . Walls Destroyed . | . . . Machines Disabled . | . . . Actions | -11 -10 -10 --------- Run | Yrd Mat Min Total 760 | 72 572 116 Wait 42 | . 30 12 Move 561 | 51 432 78 Hop . | . . . Pick Up 34 | 9 21 4 Fast Attach 3 | . 3 . Attach 13 | 7 5 1 Detach . | . . . Swap 4 | . 3 1 Drop 14 | . 14 . Fire 89 | 5 64 20 Melee . | . . . Ram . | . . . Kick . | . . . Crush . | . . . Escape Stasis . | . . . Rewire . | . . . Trap . | . . . Miscellaneous . | . . . Route ------- -11/Scrapyard -10/Materials (discovered 3 exits: *Mat x2 / *Min) -10/Mines History --------- Turn | Location | Event 6 | -11/Scrapyard | Discovered new exit (range 15) 88 | -11/Scrapyard | Entered Materials 263 | -10/Materials | Core integrity fell below 50% 332 | -10/Materials | Build established: Mutant 519 | -10/Materials | Discovered new exit (range 16) 686 | -10/Materials | Discovered new exit (range 13) 707 | -10/Materials | Identified exit to Materials 974 | -10/Materials | Discovered new exit (range 8) 991 | -10/Materials | Identified exit to Mines 993 | -10/Materials | Entered Mines 994 | -10/Mines | Assembled infested the area 999 | -10/Mines | Assisted by a Guerilla fighting off Assembled 1173 | -10/Mines | Core integrity fell below 20% 1178 | -10/Mines | Destroyed by D-53 Grenadier with Mini Grenade Launcher Last Messages --------------- 01062_ Found 21 Matter. 01063_ Acquired 21 matter. 01076_ Acquired derelict log, extracted data. Data stored: Mines entrances (x2). 01095_ as-90926 destroyed. 01096_ S-10 Pest destroyed. 01106_ as-25510 destroyed. 01108_ Destroyed Asb. F-torch. 01122_ The unstable cave ceiling collapses. 01139_ as-21525 destroyed. 01141_ Acquired 18 matter. 01144_ Acquired 19 matter. 01149_ Acquired Flight Unit. 01159_ Destroyed Mining Laser. 01168_ Imp. Treads destroyed. 01169_ D-53 Grenadier destroyed. 01172_ Imp. Light Cannon destroyed. 01173_ The unstable cave ceiling collapses. 01176_ Grenade Launcher destroyed. 01178_ Imp. Treads destroyed. Map ----- +----------------------------------------------------+ | ?????????????????????????????????????????????????? | | ?????????????????????????????????????????????????? | | ?????????????????????????????????????????????????? | | ?????????????????????????????????????????????????? | | ?????????????????????????????????????????????????? | | ?????????????????????????????????????????????????? | | ?????????????????????????????????????????????????? | | ?????????????????????????????????????????????????? | | ?????????????????????????????????????????????????? | | ???????????????????????????? ????????????????????? | | ???????????????????????????? ????????????????????? | | ???????????????????????????? #???????????????????? | | ???????????????????????????? ????????????????????? | | ??????????????????????????? ????????????????????? | | ??????????????????????????? ????????????????????? | | ??????????????????????????? ????????????????????? | | ??????????????????????????? #????????????????????? | | ??????????????????????????? #????????????????????? | | ??????????????????????????? #????????????????????? | | ???????????????????????#### ##???????????????????? | | ?????????????????????### ##### #?????????????? | | ????????????????????## # ##????????? | | ??????????????####### * #????????? | | ??????????????# * ???????? | | ??????????????# ### ???????? | | ??????????????????# @ d ???????? | | ??????????????????## ???????? | | ???????????????????## ## ""????????? | | ????????????????????## #??? "?????????? | | ?????????????????????# #????? "?????????? | | ?????????????????????# #??????? ?????????? | | ?????????????????????## #??????????????????? | | ??????????????????????# ##?????????????????? | | ??????????????????????### #?????????????????? | | ????????????????????????# ##?????????????????? | | ????????????????????????# #?????????????????? | | ????????????????????????# ##?????????????????? | | ????????????????????????### ###??????????????????? | | ??????????????????????????# ##???????????????????? | | ???????????##########?????# #????????????????????? | | ???????????# #?????# #????????????????????? | | ???????????# """ #?????# #????????????????????? | | ???????????# """ #????## #????????????????????? | | ???????????# """ #????# #????????????????????? | | ???????????# #????# ##????????????????????? | | ???????????### ######????# "#????????????????????? | | ?????????????# #???####?## ##????????????????????? | | ???????????### #??## ###" #?????????????????????? | | ???????????# # ####! ### #?????????? ???????? | | ???????????# ## #?????? #?????????? | +----------------------------------------------------+ Best States ------------- Heat Dissipation 25 Energy Generation 10 Energy Capacity 250 Matter Stores 300 Matter Capacity 300 Sight Range 16 Terrain Scan Range 16 Terrain Scan Density 10 Evasion (%) 55 Recoil Reduction 2 Item Schematics ----------------- None Robot Schematics ------------------ None Fabricated ------------ Nothing Alien Tech Used ----------------- None Achievements -------------- None Challenges ------------ None Game ------ Seed ImpactDamperInterrupter Manual? 0 Play Time 00:16:44 Cumulative 19.2 hours Start 2024.04.03 @ 16:39:48 End 2024.04.03 @ 16:55:47 Sessions 1 Manual Loads 0 Difficulty Rogue Special Mode None Game No. 29 Rogue 29 Adventurer 0 Explorer 0 Win Type - Total 0 Types 0/0/0/0/0/0/0/0/0 Lore% 15 Gallery% 21 Achievement% 16 Wizard Run 0 Options --------- Layout 0 ASCII 0 Keyboard 0 Movement Mouse Keybinds 0 Fullscreen 2 Font 24/Smallcaps Map View 76x50 Zoom Use 0% Tactical HUD 1 Map Filters NONE Filters NONE Steam 1 RUN: b4b0a846-2fab-4214-bfdd-037b64cfbf67